[Event "Bicaz City Cup 2020"]
[Site "Bicaz"]
[Date "2020.03.05"]
[Round "1.19"]
[White "Cimpoiasu, Dan"]
[Black "Guzun, Lavinia"]
[Result "1-0"]
[ECO "D11"]
[WhiteElo "1884"]
[BlackElo "1328"]
[Annotator "NA RC"]
[PlyCount "87"]
[EventDate "2020.03.05"]
[EventType "swiss"]
[EventCountry "ROU"]
[SourceTitle "playchess.com"]
[Source "ChessBase"]
[SourceQuality "1"]
[TimeControl "5400+30"]

1. d4 {[%emt 0:00:00]} d5 {[%emt 0:00:00]} 2. c4 {[%emt 0:00:05]} c6 {[%emt 0:00:00]} 3. Nf3 {[%emt 0:00:31]} Nf6 {[%emt 0:00:01]} 4. Qc2 {[%emt 0:00:40]} e6 {[%emt 0:00:58]} 5. Bg5 {[%emt 0:00:44]} Nbd7 {[%emt 0:02:09]} 6. Nbd2 {[%emt 0:01:02]} Be7 {[%emt 0:00:46]} 7. e3 {[%emt 0:00:38]} a6 {[%emt 0:00:53]} 8. Bd3 {[%emt 0:01:04]} h6 {[%emt 0:01:13]} 9. Bh4 {[%emt 0:00:22]} O-O {[%emt 0:00:43]} 10. O-O {[%emt 0:00:14]} b5 {[%emt 0:00:47]} 11. b3 {[%emt 0:04:41]} Bb7 {[%emt 0:00:31]} 12. e4 {[%emt 0:06:51]} dxe4 {[%emt 0:02:05]} 13. Nxe4 {[%emt 0:00:33]} Nxe4 {[%emt 0:01:13]} 14. Bxe7 {[%emt 0:00:19]} Qxe7 {[%emt 0:00:08]} 15. Bxe4 {[%emt 0:00:12]} Nf6 {[%emt 0:01:11]} 16. c5 {[%emt 0:03:56]} Nxe4 {[%emt 0:03:14]} 17. Qxe4 {[%emt 0:00:13]} Rfd8 {[%emt 0:00:24]} 18. b4 {[%emt 0:05:50]} a5 {[%emt 0:03:14]} 19. a3 {[%emt 0:00:35]} a4 {[%emt 0:00:41]} 20. Ne5 {[%emt 0:04:42]} Rd5 {[%emt 0:02:22]} 21. Rad1 {[%emt 0:02:31]} Rad8 {[%emt 0:01:13]} 22. h4 {[%emt 0:01:02]} Qf6 {[%emt 0:02:47]} 23. Rd3 {[%emt 0:09:59]} Qf5 {[%emt 0:01:42]} 24. Qxf5 {[%emt 0:05:27]} exf5 {[%emt 0:00:01]} 25. Rfd1 {[%emt 0:01:43]} f6 {[%emt 0:03:17]} 26. Ng6 {[%emt 0:03:06]} Kf7 {[%emt 0:00:26]} 27. Nf4 {[%emt 0:01:11]} R5d7 {[%emt 0:00:14]} 28. h5 {[%emt 0:04:02]} Ba8 {[%emt 0:03:00]} 29. Kf1 {[%emt 0:03:36]} Re7 {[%emt 0:00:56]} 30. f3 {[%emt 0:08:25]} Bb7 {[%emt 0:00:47]} 31. Kf2 {[%emt 0:02:06]} Bc8 {[%emt 0:02:23]} 32. d5 {[%emt 0:01:02]} cxd5 {[%emt 0:00:35]} 33. Rxd5 {[%emt 0:02:08]} Rxd5 {[%emt 0:00:08]} 34. Rxd5 {[%emt 0:01:45]} Re5 {[%emt 0:03:10]} 35. Rd8 {[%emt 0:02:14]} Re8 {[%emt 0:01:18]} 36. Rd6 {[%emt 0:01:24]} Re7 {[%emt 0:00:39]} 37. Ne2 {[%emt 0:03:58]} Re6 {[%emt 0:02:27]} 38. Rxe6 {[%emt 0:01:02]} Bxe6 {[%emt 0:00:15]} 39. Nd4 {[%emt 0:00:17]} Bd7 {[%emt 0:00:46]} 40. Ke3 {[%emt 0:00:36]} g6 {[%emt 0:01:03]} 41. hxg6+ {[%emt 0:00:30]} Kxg6 {[%emt 0:00:01]} 42. Kf4 {[%emt 0:00:22]} h5 {[%emt 0:00:43]} 43. g3 {[%emt 0:00:12]} Be8 {[%emt 0:01:16]} 44. c6 {[%emt 0:01:25]} 1-0

[Event "Bicaz City Cup 2020"]
[Site "Bicaz"]
[Date "2020.03.05"]
[Round "1.20"]
[White "Barila, Cristian-Dorin"]
[Black "Ienasoaie, Rafael"]
[Result "0-1"]
[ECO "E20"]
[WhiteElo "1297"]
[BlackElo "1883"]
[Annotator "NA RC"]
[PlyCount "70"]
[EventDate "2020.03.05"]
[EventType "swiss"]
[EventCountry "ROU"]
[SourceTitle "playchess.com"]
[Source "ChessBase"]
[SourceQuality "1"]
[TimeControl "5400+30"]

1. d4 {[%emt 0:00:00]} Nf6 {[%emt 0:00:00]} 2. c4 {[%emt 0:00:10]} e6 {[%emt 0:00:00]} 3. Nc3 {[%emt 0:00:32]} Bb4 {[%emt 0:00:00]} 4. Bd2 {[%emt 0:00:22]} b6 {[%emt 0:00:12]} 5. a3 {[%emt 0:00:25]} Bxc3 {[%emt 0:00:49]} 6. Bxc3 {[%emt 0:00:41]} Bb7 {[%emt 0:00:09]} 7. Nf3 {[%emt 0:02:35]} O-O {[%emt 0:00:12]} 8. e3 {[%emt 0:00:27]} c5 {[%emt 0:00:21]} 9. Be2 {[%emt 0:00:43]} d5 {[%emt 0:01:07]} 10. b3 {[%emt 0:02:02]} Nbd7 {[%emt 0:00:20]} 11. O-O {[%emt 0:00:52]} Qe7 {[%emt 0:00:20]} 12. Qc2 {[%emt 0:02:07]} Ne4 {[%emt 0:00:32]} 13. Bb2 {[%emt 0:01:14]} f5 {[%emt 0:00:10]} 14. Nd2 {[%emt 0:00:35]} cxd4 {[%emt 0:03:35]} 15. exd4 {[%emt 0:03:32]} Rac8 {[%emt 0:00:44]} 16. f3 {[%emt 0:01:54]} Nd6 {[%emt 0:01:10]} 17. Rac1 {[%emt 0:01:15]} f4 {[%emt 0:00:15]} 18. Bd3 {[%emt 0:01:28]} Nf5 {[%emt 0:02:14]} 19. Bxf5 {[%emt 0:01:27]} Rxf5 {[%emt 0:00:11]} 20. Rfe1 {[%emt 0:02:30]} Qf7 {[%emt 0:00:54]} 21. Re2 {[%emt 0:01:19]} h5 {[%emt 0:00:55]} 22. Kf2 {[%emt 0:04:20]} h4 {[%emt 0:00:17]} 23. Rg1 {[%emt 0:01:50]} a5 {[%emt 0:00:28]} 24. Qd3 {[%emt 0:09:08]} Ba6 {[%emt 0:00:49]} 25. Rc1 {[%emt 0:00:36]} Re8 {[%emt 0:03:13]} 26. Nb1 {[%emt 0:03:54]} Nf6 {[%emt 0:05:43]} 27. Nc3 {[%emt 0:06:36]} g5 {[%emt 0:01:54]} 28. Na4 {[%emt 0:01:42]} Qd7 {[%emt 0:02:27]} 29. Nxb6 {[%emt 0:05:14]} Qc6 {[%emt 0:00:09]} 30. Na4 {[%emt 0:02:32]} dxc4 {[%emt 0:00:13]} 31. bxc4 {[%emt 0:01:36]} Qxa4 {[%emt 0:03:52]} 32. Rxe6 {[%emt 0:02:25]} Rxe6 {[%emt 0:00:56]} 33. Qxf5 {[%emt 0:00:22]} Qe8 {[%emt 0:01:18]} 34. Qd3 {[%emt 0:07:43]} Re3 {[%emt 0:00:55]} 35. Qg6+ {[%emt 0:01:55]} Qxg6 0-1

[Event "Bicaz City Cup 2020"]
[Site "Bicaz"]
[Date "2020.03.06"]
[Round "2.18"]
[White "Sandulescu, Gheorghe"]
[Black "Cimpoiasu, Dan"]
[Result "0-1"]
[ECO "A50"]
[WhiteElo "1632"]
[BlackElo "1884"]
[Annotator "NA RC"]
[PlyCount "46"]
[EventDate "2020.03.05"]
[EventType "swiss"]
[EventCountry "ROU"]
[SourceTitle "playchess.com"]
[Source "ChessBase"]
[SourceQuality "1"]
[TimeControl "5400+30"]

1. d4 {[%emt 0:01:04]} Nf6 {[%emt 0:06:53]} 2. c4 {[%emt 0:00:18]} g6 {[%emt 0:00:35]} 3. h4 {[%emt 0:00:23]} Bg7 {[%emt 0:00:39]} 4. Nc3 {[%emt 0:00:34]} d5 {[%emt 0:01:08]} 5. cxd5 {[%emt 0:01:46]} Nxd5 {[%emt 0:00:47]} 6. e4 {[%emt 0:00:45] E60: King's Indian: Unusual lines and Fianchetto Variation without Nc3.} Nb6 {[%emt 0:04:56]} 7. Be3 {[%emt 0:02:42]} Nc6 {[%emt 0:02:19]} 8. Nf3 {[%emt 0:04:33]} Bg4 {[%emt 0:01:21] [#]} 9. Bb5 $146 {[%emt 0:00:28]} ({Predecessor:} 9. d5 Ne5 10. Be2 O-O 11. Nxe5 Bxe2 12. Nxf7 Bxd1 13. Nxd8 Bg4 14. Ne6 Bxe6 15. dxe6 {½-½ (67) Giri,A (2782)-Vachier Lagrave,M (2789) Leuven 2016}) 9... O-O {[%emt 0:01:42]} 10. Bxc6 {[%emt 0:00:59]} bxc6 {[%emt 0:00:08]} 11. Qd3 {[%emt 0:09:02]} c5 {[%emt 0:04:06]} 12. Ne2 {[%emt 0:01:30]} cxd4 {[%emt 0:01:07]} 13. Bf4 {[%emt 0:07:34]} c5 {[%emt 0:04:28]} 14. Nd2 $2 {[%emt 0:03:07]} (14. b3) 14... c4 {[%emt 0:02:28]} (14... e5 $142 15. Bg3 {[#]} c4 $1 {[%mdl 512]}) 15. Qa3 {[%emt 0:07:57]} Bxe2 {[%emt 0:03:35]} 16. Kxe2 {[%emt 0:00:14]} c3 {[%emt 0:01:21]} 17. bxc3 {[%emt 0:03:57]} dxc3 {[%emt 0:00:20]} 18. Nf3 {[%emt 0:01:28]} Qd7 {[%emt 0:02:41]} 19. Qb3 {[%emt 0:02:17]} Qc6 {[%emt 0:06:34]} 20. Rac1 {[%emt 0:07:37]} Qxe4+ {[%emt 0:01:14]} 21. Be3 {[%emt 0:00:12]} Nd5 {[%emt 0:10:29]} 22. Qc2 {[%emt 0:12:13]} Nf4+ {[%emt 0:04:16] Double Attack} 23. Kf1 {[%emt 0:00:35]} Qc4+ $19 {[%emt 0:00:28]} 0-1

[Event "Bicaz City Cup 2020"]
[Site "Bicaz"]
[Date "2020.03.06"]
[Round "2.19"]
[White "Ienasoaie, Rafael"]
[Black "Turcan, Gheorghe"]
[Result "1-0"]
[ECO "C01"]
[WhiteElo "1883"]
[BlackElo "1535"]
[Annotator "NA RC"]
[PlyCount "123"]
[EventDate "2020.03.05"]
[EventType "swiss"]
[EventCountry "ROU"]
[SourceTitle "playchess.com"]
[Source "ChessBase"]
[SourceQuality "1"]
[TimeControl "5400+30"]

1. e4 {[%emt 0:00:00]} e6 {[%emt 0:00:21]} 2. d4 {[%emt 0:00:02]} d5 {[%emt 0:01:00]} 3. exd5 {[%emt 0:00:30]} exd5 {[%emt 0:00:14]} 4. Bd3 {[%emt 0:00:18]} Bd6 {[%emt 0:00:12]} 5. Nf3 {[%emt 0:00:11]} Ne7 {[%emt 0:00:55]} 6. O-O {[%emt 0:00:13]} Bf5 {[%emt 0:01:42]} 7. Bxf5 {[%emt 0:01:19]} Nxf5 {[%emt 0:00:22]} 8. Qe2+ {[%emt 0:00:29] C01: French: Exchange Variation.} Ne7 {[%emt 0:00:55]} 9. Qb5+ {[%emt 0:00:16]} Nd7 {[%emt 0:03:37]} 10. Qxb7 {[%emt 0:00:23]} O-O {[%emt 0:02:46] [#]} 11. Qa6 $146 {[%emt 0:00:24]} ({Predecessor:} 11. Qb3 c5 12. c3 c4 13. Qc2 Qc7 14. Re1 Ng6 15. b3 Rfe8 16. Be3 cxb3 17. axb3 {1-0 (40) Kirchner,T (2270)-Noble,A Schwanstetten 1994}) 11... Ng6 {[%emt 0:01:39]} 12. Be3 {[%emt 0:01:05]} Qf6 {[%emt 0:01:32]} 13. Qd3 {[%emt 0:00:14]} h6 {[%emt 0:01:30]} 14. Nc3 {[%emt 0:00:22]} c6 {[%emt 0:00:59]} 15. Ne2 {[%emt 0:00:10]} Nh4 {[%emt 0:04:52]} 16. Nxh4 {[%emt 0:01:06]} Qxh4 {[%emt 0:00:19]} 17. g3 {[%emt 0:00:16]} Qh3 {[%emt 0:06:26]} 18. Nf4 {[%emt 0:01:19]} Bxf4 {[%emt 0:00:53]} 19. Bxf4 {[%emt 0:00:10]} Nf6 {[%emt 0:01:13]} 20. f3 {[%emt 0:00:52]} Nh5 {[%emt 0:03:59]} 21. Qd2 {[%emt 0:01:01]} Rfe8 {[%emt 0:01:47]} 22. Rae1 {[%emt 0:00:32]} Qf5 {[%emt 0:06:26]} 23. Be5 {[%emt 0:00:27]} f6 {[%emt 0:01:48]} 24. g4 {[%emt 0:00:59]} Qg6 {[%emt 0:00:13]} 25. Bg3 {[%emt 0:01:46]} Nxg3 {[%emt 0:01:45]} 26. hxg3 {[%emt 0:00:09]} h5 {[%emt 0:01:01]} 27. gxh5 {[%emt 0:22:55]} Qxg3+ {[%emt 0:00:34]} 28. Qg2 {[%emt 0:00:09]} Qh4 {[%emt 0:00:17]} 29. Qg4 {[%emt 0:00:21]} Qxe1 {[%emt 0:09:06]} 30. Rxe1 {[%emt 0:00:07]} Rxe1+ {[%emt 0:00:17]} 31. Kf2 {[%emt 0:00:08]} Rae8 {[%emt 0:00:34]} 32. Qd7 {[%emt 0:00:59]} R8e2+ {[%emt 0:07:46]} 33. Kg3 {[%emt 0:00:12]} Rg1+ {[%emt 0:01:12]} 34. Kf4 {[%emt 0:00:13]} Rh1 {[%emt 0:01:54]} 35. Qxc6 {[%emt 0:05:38]} Rxh5 {[%emt 0:01:33]} 36. c4 {[%emt 0:00:52]} g5+ $2 {[%emt 0:08:38]} (36... g6 $11 {and Black has nothing to worry.}) 37. Kf5 {[%emt 0:00:21]} g4+ {[%emt 0:04:32] [#]} 38. Kg6 $1 {[%emt 0:00:08]} Rg5+ {[%emt 0:01:00]} 39. Kxf6 {[%emt 0:00:06]} Rg7 {[%emt 0:00:47]} 40. Qxd5+ {[%emt 0:00:14]} Kh7 {[%emt 0:00:08]} 41. Qh5+ {[%emt 0:00:59]} Kg8 {[%emt 0:00:03]} 42. fxg4 {[%emt 0:00:14]} Rf2+ $2 {[%emt 0:02:33]} (42... Ree7 $1 $11 {and Black stays safe.}) 43. Ke6 {[%emt 0:00:21]} Re2+ {[%emt 0:02:17]} 44. Kd6 {[%emt 0:00:09]} Rxb2 {[%emt 0:00:18]} 45. c5 {[%emt 0:00:07]} Rb4 {[%emt 0:02:02]} 46. d5 {[%emt 0:00:20]} Rbxg4 {[%emt 0:00:07]} 47. Qe8+ {[%emt 0:00:15]} Kh7 {[%emt 0:00:07]} 48. c6 {[%emt 0:00:05]} Rc4 {[%emt 0:01:23]} 49. Qd8 {[%emt 0:01:07]} Rg6+ {[%emt 0:00:27]} 50. Kc7 {[%emt 0:00:09]} Rg7+ {[%emt 0:00:06]} 51. Kd6 {[%emt 0:00:11]} Rg6+ {[%emt 0:00:14]} 52. Ke5 {[%emt 0:00:05]} Rg7 {[%emt 0:01:30]} 53. Qe8 {[%emt 0:01:46]} Rc2 {[%emt 0:00:25]} 54. Qh5+ {[%emt 0:00:10]} Kg8 {[%emt 0:00:03]} 55. a4 {[%emt 0:00:40]} a5 {[%emt 0:00:12]} 56. Kd4 {[%emt 0:01:19]} Rgg2 {[%emt 0:02:01]} 57. Qe8+ {[%emt 0:00:49]} Kg7 {[%emt 0:00:06]} 58. Qd7+ {[%emt 0:00:07]} Kf6 {[%emt 0:00:27]} 59. Qd8+ {[%emt 0:00:30]} Kf5 {[%emt 0:00:09]} 60. Qf8+ {[%emt 0:00:09]} Kg6 {[%emt 0:00:42] [#]} 61. c7 $1 {[%emt 0:00:44]} Rgd2+ {[%emt 0:00:23]} 62. Ke5 {[%emt 0:00:13]} 1-0

[Event "Bicaz City Cup 2020"]
[Site "Bicaz"]
[Date "2020.03.06"]
[Round "2.20"]
[White "Tablan, Matei-Christian"]
[Black "Turcu, Vasile-Emanoil"]
[Result "1-0"]
[ECO "C42"]
[WhiteElo "1858"]
[BlackElo "1504"]
[Annotator "NA RC"]
[PlyCount "48"]
[EventDate "2020.03.05"]
[EventType "swiss"]
[EventCountry "ROU"]
[SourceTitle "playchess.com"]
[Source "ChessBase"]
[SourceQuality "1"]
[TimeControl "5400+30"]

{[%evp 15,48,11,18,20,32767,32767,32767,32767,32767,73,89,42,70,60,222,225,226,220,503,486,488,493,507,406,424,404,494,467,503,360,651,684,875,792,716]} 1. e4 {[%emt 0:11:41]} e5 {[%emt 0:00:15]} 2. Nf3 {[%emt 0:00:11]} Nf6 {[%emt 0:00:42]} 3. Nxe5 {[%emt 0:00:16]} d6 {[%emt 0:00:18]} 4. Nf3 {[%emt 0:00:05]} Nxe4 {[%emt 0:00:07]} 5. Nc3 {[%emt 0:00:04]} Nxc3 {[%emt 0:09:57]} 6. dxc3 {[%emt 0:00:12]} Be7 {[%emt 0:09:35]} 7. Be3 {[%emt 0:00:34]} Nd7 {[%emt 0:06:50]} 8. Bd3 {[%emt 0:24:32] C42: Petroff Defence: 3 Nxe5 and unusual White 3rd moves.} Nf6 {[%emt 0:03:27] h} 9. h3 {[%emt 0:02:27] [#]} Bd7 $146 {[%emt 0:20:37]} ({Predecessor:} 9... O-O 10. Qd2 Be6 11. c4 d5 12. Ng5 h6 13. Nxe6 fxe6 14. O-O-O c5 15. Kb1 d4 {1-0 (31) Chauca,J (2065)-Baptista,A (1910) Rio de Janeiro 2018}) 10. Qd2 {[%emt 0:01:56]} c6 {[%emt 0:04:56]} 11. O-O-O {[%emt 0:03:28]} Qc7 {[%emt 0:01:01]} 12. Rde1 {[%emt 0:07:15]} O-O {[%emt 0:19:49]} 13. c4 {[%emt 0:29:30]} Rae8 {[%emt 0:07:06]} 14. Bf4 {[%emt 0:01:08]} c5 $2 {[%emt 0:03:58] [#]} (14... Be6 $1 $14) 15. Rxe7 $1 {[%emt 0:00:50] Remove Defender} Rxe7 {[%emt 0:01:11] [#]} 16. Bxd6 $1 {[%emt 0:00:06] Double Attack} Qxd6 $2 {[%emt 0:05:04] [#]} (16... Qd8 {was necessary.} 17. Bxc5 g6 18. Bxe7 Qxe7) 17. Bxh7+ $1 {[%emt 0:00:07] Discovered Attack} Kxh7 {[%emt 0:00:58]} 18. Qxd6 {[%emt 0:00:32]} Rfe8 {[%emt 0:00:31]} 19. Rd1 {[%emt 0:01:49]} b6 {[%emt 0:01:24]} 20. b3 {[%emt 0:00:47]} Re2 {[%emt 0:01:38]} 21. Qf4 {[%emt 0:04:14]} Kg8 {[%emt 0:00:32]} 22. Rd6 {[%emt 0:01:26]} R8e6 $2 {[%emt 0:00:31]} (22... Rxf2 23. Rd2 Rxd2 24. Kxd2 Rc8) 23. Rxe6 {[%emt 0:01:43]} Bxe6 {[%emt 0:00:31]} 24. Ng5 {[%emt 0:06:17]} Bd7 $18 1-0

[Event "Bicaz City Cup 2020"]
[Site "Bicaz"]
[Date "2020.03.06"]
[Round "3.7"]
[White "Dobre, Claudiu-Cristian"]
[Black "Dumitru, Luca-Serban"]
[Result "1-0"]
[ECO "A09"]
[WhiteElo "2312"]
[BlackElo "1788"]
[Annotator "ChessBase"]
[PlyCount "53"]
[EventDate "2020.03.05"]
[EventType "swiss"]
[EventCountry "ROU"]
[SourceTitle "playchess.com"]
[Source "ChessBase"]
[SourceQuality "1"]
[TimeControl "5400+30"]

1. Nf3 d5 {[%emt 0:02:46]} 2. c4 {[%emt 0:00:00]} d4 {[%emt 0:00:28]} 3. b4 {[%emt 0:00:40]} g6 {[%emt 0:02:42]} 4. g3 {[%emt 0:07:48]} Bg7 {[%emt 0:02:06]} 5. d3 {[%emt 0:00:27]} Bg4 {[%emt 0:01:45]} 6. Bg2 {[%emt 0:00:25]} Qc8 {[%emt 0:00:56]} 7. Bb2 {[%emt 0:05:24]} e5 {[%emt 0:01:20]} 8. Nbd2 {[%emt 0:03:18]} Bh3 {[%emt 0:00:56]} 9. O-O {[%emt 0:00:16]} Bxg2 {[%emt 0:00:10]} 10. Kxg2 {[%emt 0:00:06]} Ne7 {[%emt 0:02:12]} 11. e3 {[%emt 0:13:56]} dxe3 {[%emt 0:04:15]} 12. fxe3 {[%emt 0:00:47]} Nf5 {[%emt 0:02:16]} 13. Qe2 {[%emt 0:10:21]} Nd7 {[%emt 0:03:08]} 14. d4 {[%emt 0:16:45]} Bh6 {[%emt 0:02:07]} 15. dxe5 {[%emt 0:01:03]} Nxe3+ {[%emt 0:00:34]} 16. Kh1 {[%emt 0:00:06]} O-O {[%emt 0:00:32]} 17. Rf2 {[%emt 0:04:09]} Ng4 {[%emt 0:07:43]} 18. Rff1 {[%emt 0:07:23]} Re8 {[%emt 0:01:37]} 19. Ne4 {[%emt 0:02:46]} Bg7 {[%emt 0:00:59]} 20. e6 {[%emt 0:02:17]} Rxe6 {[%emt 0:04:09]} 21. Bxg7 {[%emt 0:01:13]} Kxg7 {[%emt 0:00:08]} 22. Nd4 {[%emt 0:03:29]} Re5 {[%emt 0:01:16]} 23. Qxg4 {[%emt 0:00:41]} f5 {[%emt 0:00:45]} 24. Rxf5 {[%emt 0:03:01]} h5 {[%emt 0:04:29]} 25. Qg5 {[%emt 0:00:51]} Rxe4 26. Raf1 {[%emt 0:00:24]} Rg4 {[%emt 0:09:39]} 27. Rf7+ 1-0

[Event "Bicaz City Cup 2020"]
[Site "Bicaz"]
[Date "2020.03.06"]
[Round "3.9"]
[White "Mazilu, Stefan-Fabian"]
[Black "Filip, Andrei"]
[Result "1/2-1/2"]
[ECO "E01"]
[WhiteElo "1772"]
[BlackElo "2103"]
[Annotator "ChessBase"]
[PlyCount "52"]
[EventDate "2020.03.05"]
[EventType "swiss"]
[EventCountry "ROU"]
[SourceTitle "playchess.com"]
[Source "ChessBase"]
[SourceQuality "1"]
[TimeControl "5400+30"]

1. d4 {[%emt 0:00:00]} Nf6 {[%emt 0:00:00]} 2. c4 {[%emt 0:00:00]} e6 {[%emt 0:00:00]} 3. g3 {[%emt 0:00:00]} d5 {[%emt 0:00:22]} 4. Bg2 {[%emt 0:00:00]} Bb4+ {[%emt 0:00:29]} 5. Bd2 {[%emt 0:00:09]} Be7 {[%emt 0:00:22]} 6. Bc3 {[%emt 0:01:18]} c6 {[%emt 0:00:51]} 7. Nf3 {[%emt 0:00:39]} O-O {[%emt 0:00:13]} 8. O-O {[%emt 0:00:43]} b6 {[%emt 0:00:14]} 9. Nbd2 {[%emt 0:00:41]} Bb7 10. Qc2 {[%emt 0:01:10]} Nbd7 {[%emt 0:02:12]} 11. e4 {[%emt 0:03:04]} c5 {[%emt 0:04:46]} 12. exd5 {[%emt 0:07:44]} exd5 {[%emt 0:01:17]} 13. Ne5 {[%emt 0:04:44]} cxd4 {[%emt 0:10:01]} 14. Bxd4 {[%emt 0:01:10]} Qc7 {[%emt 0:01:52]} 15. Rfe1 {[%emt 0:03:20]} dxc4 {[%emt 0:24:08]} 16. Qxc4 {[%emt 0:05:47]} Nc5 {[%emt 0:09:47]} 17. b4 {[%emt 0:08:04]} Bxg2 {[%emt 0:01:45]} 18. bxc5 {[%emt 0:04:29]} bxc5 {[%emt 0:09:06]} 19. Kxg2 {[%emt 0:01:25]} Qb7+ {[%emt 0:00:29]} 20. Ndf3 {[%emt 0:00:56]} cxd4 {[%emt 0:02:41]} 21. Qxd4 {[%emt 0:00:22]} Rad8 {[%emt 0:02:28]} 22. Qc4 {[%emt 0:02:29]} Rc8 {[%emt 0:04:15]} 23. Qb3 {[%emt 0:01:51]} Qc7 {[%emt 0:05:36]} 24. Rac1 {[%emt 0:01:53]} Qxc1 {[%emt 0:02:23]} 25. Rxc1 {[%emt 0:00:10]} Rxc1 {[%emt 0:00:08]} 26. Ng5 {[%emt 0:00:29]} Rc5 {[%emt 0:08:20]} 1/2-1/2